bitfinex/quotes_ETHUSD_20240530
["timestamp","ask_amount","ask_price","bid_price","bid_amount"]
[1717050330821,12.21010298,3762.9,3761.4,0.55]
[1717050331955,10.32297454,3762.9,3761.5,2.89299222]
[1717050332172,10.32297454,3762.9,3761.7,2.2972]
[1717050332466,10.32297454,3762.9,3761.8,0.59115723]
[1717050334278,10.32297454,3762.9,3761.9,1.5949]
[1717050334476,10.32297454,3762.9,3762.0,0.55]
[1717050334633,10.32297454,3762.9,3762.1,0.26949]
[1717050334840,10.32297454,3762.9,3762.2,0.55]
[1717050335050,7.32297454,3762.9,3762.3,0.04098699]
[1717050335266,7.32297454,3763.4,3762.4,5.20900222]
[1717050335575,7.32297454,3763.4,3762.6,1.59462]
[1717050335784,7.32297454,3763.4,3762.7,0.446102]
[1717050335933,7.32297454,3763.4,3762.8,0.55]
[1717050336134,7.32297454,3763.4,3762.8,0.59076716]
[1717050337186,7.32297454,3763.4,3762.9,1.5945]
[1717050337482,7.32297454,3763.4,3763.1,1.59442]
[1717050337670,7.32297454,3763.9,3763.2,0.89423122]
[1717050339152,3.0,3763.8,3763.2,0.89423122]
[1717050340494,3.0,3763.8,3763.2,0.55]
[1717050340996,3.0,3763.8,3762.7,0.446102]
[1717050341565,3.0,3763.8,3763.0,1.59443]
[1717050341765,7.32297454,3763.9,3763.0,2.89232222]
[1717050342094,7.32297454,3763.9,3763.3,1.59432]
[1717050342263,7.32297454,3763.9,3763.4,0.84328589]
[1717050342596,12.36,3764.4,3763.4,0.88339363]
[1717050342597,19.68297454,3764.4,3763.4,0.88339363]
[1717050342795,7.32297454,3764.4,3763.4,0.88339363]
[1717050343000,7.32297454,3764.4,3763.4,0.84328589]
[1717050343298,3.0,3764.3,3763.6,2.4035]
[1717050343467,7.32297454,3764.4,3763.7,2.30236003]
[1717050343672,7.32297454,3764.4,3763.7,2.63857733]
[1717050343881,7.32297454,3764.4,3763.7,1.04443733]
[1717050344605,5.3756,3764.3,3763.7,0.03996952]
[1717050344753,3.0,3764.3,3763.7,0.03996952]
[1717050345071,3.0,3764.3,3763.1,1.59439]
[1717050345072,3.0,3764.3,3763.2,2.2872]
[1717050345269,3.0,3764.3,3763.3,2.89222222]
[1717050345469,3.0,3764.3,3763.4,0.51794222]
[1717050345654,3.0,3764.3,3763.4,1.85583231]
[1717050346063,3.0,3764.3,3763.5,0.55]
[1717050346399,3.0,3764.3,3763.4,0.51794222]
[1717050346601,3.0,3764.3,3763.6,0.03999433]
[1717050346807,3.0,3764.3,3763.6,0.21522666]
[1717050347166,3.0,3764.3,3763.7,0.03990928]
[1717050347693,3.0,3764.3,3763.7,0.58990928]
[1717050348608,3.0,3764.7,3763.7,0.58990928]
[1717050348916,3.0,3764.7,3763.7,0.55]
[1717050358225,3.0,3764.7,3763.8,1.59411]
[1717050358428,3.0,3764.7,3763.9,0.78593367]
[1717050359624,3.0,3764.7,3764.0,0.03971085]
[1717050360245,3.0,3764.7,3764.1,2.4801]
[1717050360459,3.0,3764.7,3764.2,0.55]
[1717050360793,3.0,3765.1,3764.3,0.03971085]
[1717050360992,3.0,3765.1,3764.4,0.30698108]
[1717050361330,3.0,3765.1,3764.5,0.55]
[1717050361506,3.0,3765.1,3764.3,0.55]
[1717050361700,3.0,3765.1,3764.0,0.55]
[1717050362008,3.0,3765.1,3764.1,1.59397]
[1717050362336,3.0,3765.1,3764.2,0.55]
[1717050362509,7.32297454,3765.2,3764.3,0.40303297]
[1717050362707,7.32297454,3765.2,3764.4,0.55]
[1717050362909,7.32297454,3765.2,3764.4,0.58855241]
[1717050363963,7.32297454,3765.2,3764.5,1.59382]
[1717050364143,7.32297454,3765.2,3764.6,0.55]
[1717050364313,7.32297454,3765.2,3764.7,2.59533724]
[1717050364498,7.32297454,3765.2,3764.8,0.55]
[1717050364924,3.0,3765.6,3764.8,0.60311876]
[1717050365124,3.0,3765.6,3764.9,0.03855241]
[1717050365991,7.32297454,3765.7,3764.9,1.63217241]
[1717050366195,7.32297454,3765.7,3765.0,1.02775096]
[1717050366519,7.32297454,3765.7,3765.1,0.0383259]
[1717050368635,7.32297454,3765.7,3765.2,1.59351]
[1717050368838,12.36,3766.1,3765.3,0.55]
[1717050369396,12.36,3766.1,3765.4,0.0383259]
[1717050369700,12.36,3766.1,3765.5,0.21818359]
[1717050369955,7.32297454,3766.2,3765.7,2.3437]
[1717050370112,3.0,3766.5,3765.8,0.55]
[1717050370298,3.0,3766.5,3765.8,0.5883259]
[1717050370508,3.0,3766.6,3765.8,0.55]
[1717050370699,7.32297454,3766.7,3765.8,0.91429222]
[1717050370922,7.32297454,3766.7,3765.8,0.86118836]
[1717050371127,7.32297454,3766.7,3765.9,0.03820913]
[1717050371523,7.32297454,3766.7,3765.8,0.86118836]
[1717050371871,7.32297454,3766.7,3766.0,0.03820913]
[1717050372156,3.0,3766.6,3766.0,0.48364075]
[1717050372443,3.0,3766.6,3766.1,0.58780919]
[1717050374546,3.0,3766.6,3766.1,0.03780919]
[1717050374755,3.0,3766.6,3765.9,0.55]
[1717050374903,7.32297454,3766.7,3766.1,1.59315]
[1717050375105,7.32297454,3766.7,3766.2,2.38539644]
[1717050375307,7.32297454,3766.7,3766.3,1.59307]
[1717050375556,7.32297454,3766.7,3766.3,5.96977141]
[1717050375771,7.32297454,3766.7,3766.3,7.90377141]
[1717050376051,7.32297454,3766.7,3766.5,1.59299]
[1717050376249,7.32297454,3767.3,3766.6,2.14326136]
[1717050376400,7.32297454,3767.3,3766.7,0.55]
[1717050376601,19.68297454,3767.7,3766.8,1.29789222]
[1717050376800,7.32297454,3767.7,3766.9,0.55]
[1717050377104,7.32297454,3767.7,3767.0,0.03780919]
[1717050377787,8.91546454,3767.7,3766.7,0.55]
[1717050377964,3.0,3767.6,3766.7,0.55]
[1717050378133,3.0,3767.6,3766.4,0.55]
[1717050378335,1.5926,3767.5,3766.4,0.55]
[1717050379894,1.5926,3767.5,3766.5,0.03780919]
[1717050380438,3.0,3767.6,3766.5,1.33570141]
[1717050380647,3.0,3767.6,3766.6,0.73857014]
[1717050381092,3.0,3767.6,3766.7,0.03757572]
[1717050381444,3.0,3767.6,3766.6,0.73857014]
[1717050381640,3.0,3767.6,3766.7,2.32087572]
[1717050381966,7.32297454,3767.7,3766.8,1.84789222]
[1717050382171,7.32297454,3767.7,3766.9,0.43573381]
[1717050382385,7.32297454,3767.7,3767.0,0.55]
[1717050382559,1.59252,3767.6,3767.0,0.55]
[1717050382755,1.59252,3767.6,3766.7,0.55]
[1717050383198,1.59252,3767.6,3766.8,0.03723264]
[1717050383402,3.0,3767.6,3766.9,1.29789222]
[1717050383718,3.0,3767.6,3767.0,0.73851249]
[1717050384204,3.0,3767.6,3767.0,0.77574513]
[1717050384706,3.0,3767.6,3767.0,0.58723264]
[1717050386961,1.5926,3767.5,3767.0,0.58723264]
[1717050387158,4.5926,3767.5,3767.0,0.58723264]
[1717050387451,1.5926,3767.5,3767.0,0.55]
[1717050390823,7.32297454,3767.7,3767.0,0.55]
[1717050391023,8.91532454,3768.1,3766.8,0.55]
[1717050391181,8.91532454,3768.1,3766.9,1.59814222]
[1717050391373,8.91532454,3768.1,3767.0,0.55]
[1717050391710,8.91532454,3768.1,3767.1,0.03723264]
[1717050392314,3.0,3768.0,3767.1,0.03723264]
[1717050392524,3.0,3768.0,3767.0,0.55]
[1717050393384,3.0,3768.0,3767.1,1.29789222]
[1717050393687,3.0,3768.0,3767.2,0.80194072]
[1717050393883,3.0,3768.0,3767.2,2.09983294]
[1717050396014,7.32297454,3768.1,3767.3,1.29789222]
[1717050396214,7.32297454,3768.1,3767.4,0.55]
[1717050396403,7.32297454,3768.1,3767.4,1.84789222]
[1717050396568,7.32297454,3768.1,3767.5,0.40266214]
[1717050396770,7.32297454,3768.1,3767.6,0.55]
[1717050396999,3.0,3768.5,3767.6,0.55]
[1717050397424,3.0,3768.5,3767.7,0.0371265]
[1717050399130,3.0,3768.5,3767.6,0.55]
[1717050399288,1.5923,3768.2,3766.7,3.9759]
[1717050399488,13.21316676,3768.2,3766.7,3.9759]
[1717050399985,1.59248,3767.7,3766.7,2.383]
[1717050400185,1.59248,3767.7,3766.2,3.86011]
[1717050400411,1.59248,3767.7,3766.8,0.03686487]
[1717050400608,1.59248,3767.7,3766.3,1.29789222]
[1717050400810,1.59248,3767.7,3766.9,0.03686487]
[1717050401033,1.59248,3767.7,3766.4,1.06580022]
[1717050401327,1.59248,3767.7,3766.5,0.03686487]
[1717050402393,3.0,3768.1,3766.7,1.59289]
[1717050402589,3.0,3768.1,3766.8,1.84789222]
[1717050402815,3.0,3768.1,3766.9,0.34407822]
[1717050403022,3.0,3768.1,3767.0,1.84789222]
[1717050403292,3.0,3768.1,3767.0,1.8835801]
[1717050404634,1.59235,3768.0,3767.0,0.03568788]
[1717050404922,2.16673447,3768.0,3766.4,0.51580022]
[1717050405122,1.59252,3767.6,3766.5,0.27828002]
[1717050405325,1.59252,3767.6,3766.5,0.31396437]
[1717050405833,1.59252,3767.6,3766.6,1.29789222]
[1717050406333,1.59252,3767.6,3766.7,0.03568435]
[1717050406540,1.59252,3767.6,3766.8,0.16118566]
[1717050407032,1.59252,3767.6,3766.9,0.55]
[1717050407236,1.59252,3767.6,3766.9,0.58568435]
[1717050407421,1.59252,3767.6,3766.8,0.16118566]
[1717050407607,1.59252,3767.6,3766.5,0.27828002]
[1717050408044,1.59252,3767.6,3766.6,1.33357657]
[1717050408336,1.59252,3767.6,3766.6,0.03568435]
[1717050408690,1.59252,3767.6,3766.6,0.58568435]
[1717050409295,1.59252,3767.6,3765.7,2.2932]
[1717050409296,1.59272,3767.2,3765.7,2.2932]
[1717050409525,8.91569454,3767.2,3765.8,1.72221138]
[1717050409798,8.91569454,3767.2,3765.8,1.68654822]
[1717050410144,3.0,3767.1,3765.8,1.68654822]
[1717050410435,3.0,3767.1,3765.8,0.388656]
[1717050410436,1.59282,3766.9,3765.8,0.388656]
[1717050410795,4.59282,3766.9,3765.2,2.4113]
[1717050410992,4.59282,3766.9,3765.3,1.29789222]
[1717050411398,4.59282,3766.9,3765.4,0.03566316]
[1717050411683,4.59282,3766.9,3765.4,1.33355538]
[1717050411800,4.59282,3766.9,3765.5,2.89127222]
[1717050412005,4.59282,3766.9,3765.6,0.29269354]
[1717050412200,4.59282,3766.9,3765.7,1.84789222]
[1717050412457,4.59282,3766.9,3765.7,1.88355538]
[1717050415959,4.59282,3766.9,3765.7,0.58566316]
[1717050416331,4.59282,3766.9,3765.7,0.55]
[1717050416512,4.59282,3766.9,3765.8,0.24360735]
[1717050416715,4.59282,3766.9,3765.9,0.55]
[1717050420957,4.59282,3766.9,3765.9,1.84789222]
[1717050422129,3.0,3766.9,3766.0,1.29789222]
[1717050422385,7.32297454,3767.2,3766.1,3.17344996]
[1717050422683,7.32297454,3767.2,3766.2,1.29789222]
[1717050422969,7.32297454,3767.2,3766.4,1.59302]
[1717050423143,7.32297454,3767.2,3766.5,1.84789222]
[1717050423342,7.32297454,3767.6,3766.5,1.84789222]
[1717050423671,7.32297454,3767.6,3766.7,1.59287]
[1717050423970,7.32297454,3767.6,3766.8,1.84789222]
[1717050424176,3.0,3767.4,3766.8,0.58576912]
[1717050424331,3.0,3767.4,3766.9,0.55]
[1717050424532,3.0,3767.4,3766.7,0.55]
[1717050427650,3.0,3767.5,3766.7,0.55]
[1717050439661,4.04462,3767.4,3766.1,2.62344996]
[1717050439810,4.04462,3767.4,3766.2,1.29789222]
[1717050440016,3.0,3767.3,3766.2,1.29789222]
[1717050440243,3.0,3767.3,3766.3,0.03549361]
[1717050441361,3.0,3767.3,3766.3,0.58549361]
[1717050441556,3.0,3767.3,3766.4,0.45068358]
[1717050441755,3.0,3767.3,3766.5,0.58556779]
[1717050443159,1.59262,3767.4,3766.5,0.58556779]
[1717050444649,1.59262,3767.4,3766.6,1.29789222]
[1717050444957,1.59262,3767.4,3766.7,0.55]
[1717050445156,1.59262,3767.4,3766.8,0.22035701]
[1717050445371,1.59262,3767.4,3766.9,0.55]
[1717050447872,2.16705065,3767.4,3766.9,0.55]
[1717050448463,2.16706579,3767.4,3766.9,0.55]
[1717050450547,2.16705521,3767.4,3766.9,0.55]
[1717050453393,1.59262,3767.4,3766.9,0.55]
[1717050453699,2.16702193,3767.4,3766.9,0.55]
[1717050454679,2.16704447,3767.4,3766.9,0.55]
[1717050456419,0.805,3767.3,3766.9,0.55]
[1717050456617,3.805,3767.3,3766.9,0.55]
[1717050456810,3.0,3767.3,3766.9,0.55]
[1717050457014,0.805,3767.3,3766.9,0.55]
[1717050457219,0.805,3767.3,3766.6,0.55]
[1717050457516,3.805,3767.3,3767.0,0.03546859]
[1717050457712,3.0,3767.3,3766.8,0.55]
[1717050457915,0.805,3767.3,3766.8,0.55]
[1717050458426,1.59262,3767.4,3766.9,0.03546859]
[1717050458841,1.59262,3767.4,3766.8,0.55]
[1717050459024,1.59262,3767.4,3766.8,0.863192]
[1717050459327,0.805,3767.1,3766.8,0.863192]
[1717050459488,0.805,3767.1,3766.8,0.55]
[1717050459692,0.805,3767.1,3766.9,0.03546859]
[1717050460076,0.805,3767.1,3766.6,0.55]
[1717050460273,0.805,3766.9,3766.6,0.55]
[1717050460475,0.57443899,3767.2,3766.6,0.55]
[1717050460476,1.59275,3767.1,3766.7,0.03546859]
[1717050460706,0.805,3766.8,3766.7,0.03546859]
[1717050462691,0.805,3767.0,3766.7,0.03546859]
[1717050462929,4.59275,3767.1,3766.7,0.03546859]
[1717050462930,0.805,3766.8,3766.7,0.03546859]
[1717050463962,0.805,3766.8,3766.6,0.55]
[1717050467137,3.57449669,3767.0,3766.6,0.55]
[1717050467463,0.57449669,3767.0,3766.7,0.03454131]
[1717050467655,4.59275,3767.1,3766.7,0.03454131]
[1717050467962,1.59275,3767.1,3766.7,0.03454131]
[1717050468114,0.805,3767.0,3766.7,0.03454131]
[1717050469140,3.805,3767.0,3766.7,0.03454131]
[1717050469341,1.59282,3766.9,3766.7,0.03454131]
[1717050469531,1.59294,3766.7,3765.9,2.3565]
[1717050469713,0.805,3766.6,3765.9,2.3565]
[1717050469914,0.805,3766.6,3766.0,0.03454131]
[1717050470341,1.59294,3766.7,3766.0,0.03454131]
[1717050470541,1.59294,3766.7,3766.0,0.23910413]
[1717050470715,1.59294,3766.7,3766.1,0.55]
[1717050471255,1.59316,3766.1,3764.9,2.4897]
[1717050471462,1.59316,3766.1,3765.0,1.29789222]
[1717050471618,4.59316,3766.1,3765.1,0.37875922]
[1717050472608,4.59316,3766.1,3765.2,0.55]
[1717050472717,1.59336,3765.7,3764.6,2.4801]
[1717050474261,1.59336,3765.7,3764.7,0.55]
[1717050474824,4.59336,3765.7,3764.4,0.55]
[1717050475162,3.0,3765.6,3764.6,1.59378]
[1717050475460,1.59336,3765.7,3764.7,1.84789222]
[1717050477981,1.59336,3765.7,3764.7,0.55]
[1717050478581,1.59345,3765.5,3764.5,0.29664]
[1717050478789,4.59345,3765.5,3764.1,1.59399]
[1717050478984,11.91642454,3765.5,3764.2,1.29789222]
[1717050479137,11.91642454,3765.5,3764.2,1.3334434]
[1717050479340,11.91642454,3765.5,3764.2,1.29789222]
[1717050479543,11.91642454,3765.5,3764.3,0.28918822]
[1717050479741,11.91642454,3765.5,3764.3,1.58708044]
[1717050480739,11.91642454,3765.5,3764.4,0.55]
[1717050482273,11.91642454,3765.5,3764.4,2.9238]
[1717050482847,11.91642454,3765.5,3764.4,0.55]
[1717050483055,11.91642454,3765.5,3764.5,0.21370804]
[1717050483300,11.91642454,3765.5,3764.6,0.55]
[1717050490265,11.91642454,3765.5,3764.6,2.835]
[1717050490480,10.32297454,3765.5,3764.7,1.29789222]
[1717050490696,10.32297454,3765.5,3764.8,0.55]
[1717050490897,10.32297454,3765.5,3764.9,0.47175432]
[1717050491093,3.0,3765.5,3765.0,0.55]
[1717050491306,3.0,3765.5,3765.0,0.58451336]
[1717050491499,3.0,3765.8,3765.0,0.58451336]
[1717050491900,3.0,3765.8,3765.0,0.55]
[1717050492109,3.0,3765.8,3765.1,0.23196465]
[1717050492400,3.0,3765.8,3765.2,0.55]
[1717050493672,19.68297454,3765.9,3765.2,1.84789222]
[1717050493875,19.68297454,3765.9,3765.3,0.03446042]
[1717050494198,19.68297454,3765.9,3765.2,1.84789222]
[1717050494395,19.68297454,3765.9,3765.3,0.20798569]
[1717050494599,2.3706,3766.3,3765.4,3.44133222]
[1717050496702,7.32297454,3766.4,3765.4,3.44133222]
[1717050497952,7.32297454,3766.4,3765.7,1.59332]
[1717050498129,7.32297454,3766.4,3765.8,1.84789222]
[1717050498324,7.32297454,3766.4,3765.9,0.34412122]
[1717050498505,7.32297454,3766.4,3766.0,0.55]
[1717050498711,7.32297454,3766.4,3766.1,1.29789222]
[1717050498927,1.59273,3767.1,3766.2,0.55]
[1717050499266,4.59273,3767.1,3766.2,1.84789222]
[1717050499412,5.78430045,3767.1,3766.2,0.55]
[1717050499607,5.78430045,3767.1,3766.0,0.55]
[1717050506544,7.71630045,3767.1,3766.0,0.55]
[1717050506779,1.59293,3766.7,3765.8,0.55]
[1717050506927,0.159293,3766.6,3765.8,0.55]
[1717050507126,1.59293,3766.7,3765.8,0.55]
[1717050507431,1.59292941,3766.7,3765.8,0.55]
[1717050509777,1.59314,3766.2,3765.3,0.20798569]
[1717050509950,1.59314,3766.2,3764.7,1.59374]
[1717050510275,1.59314,3766.2,3764.8,1.29789222]
[1717050510651,1.59314,3766.2,3764.9,0.03367357]
[1717050510826,1.59314,3766.2,3765.0,1.29789222]
[1717050511474,1.59314,3766.2,3765.1,0.58367357]
[1717050511678,1.59314,3766.2,3765.2,0.18815658]
[1717050511873,1.59314,3766.2,3765.3,0.55]
[1717050512290,1.59314,3766.2,3765.1,0.55]
[1717050513950,10.32297454,3766.5,3764.7,1.59374]
[1717050514151,1.59333,3765.7,3764.7,1.59374]
[1717050515431,1.59333,3765.7,3764.8,0.55]
[1717050515598,1.59333,3765.7,3764.9,0.214374]
[1717050515782,1.59333,3765.7,3765.0,0.55]
[1717050515958,3.0,3766.1,3765.0,1.84789222]
[1717050516296,1.59312,3766.2,3765.0,1.84789222]
[1717050518884,1.59327,3765.9,3764.2,1.8577135]
[1717050519094,7.61209076,3765.8,3764.2,3.07761357]
[1717050519241,3.0,3765.7,3764.2,3.07761357]
[1717050519677,2.4002,3765.6,3764.3,2.4494]
[1717050520054,1.59344,3765.5,3764.3,2.4494]
[1717050520386,4.59344,3765.5,3764.5,2.2801]
[1717050520685,4.59344,3765.5,3764.6,0.55]
[1717050521188,4.59344,3765.5,3764.7,0.03281893]
[1717050521395,1.59344,3765.5,3764.7,0.03281893]
[1717050521543,4.59344,3765.5,3764.6,0.55]
[1717050523651,4.59344,3765.5,3764.7,0.03281893]
[1717050526539,7.47135662,3765.5,3764.7,0.03281893]
[1717050526703,6.52544,3765.5,3764.7,0.03281893]
[1717050526878,6.52544,3765.5,3764.6,0.55]
[1717050528452,4.59344,3765.5,3764.6,0.55]
[1717050529947,4.59344,3765.5,3764.7,2.4727]
[1717050530245,4.59344,3765.5,3764.8,0.55]
[1717050530412,0.806,3765.2,3764.8,0.55]
[1717050530608,0.806,3765.2,3764.9,0.03333369]
[1717050530822,0.806,3765.0,3764.8,0.55]
[1717050531448,0.806,3765.0,3764.9,0.03332311]
[1717050531852,0.806,3765.0,3764.8,0.55]
[1717050532013,4.59358,3765.1,3764.9,0.03332311]
[1717050532347,1.59358,3765.1,3764.8,2.8697]
[1717050532713,1.59358,3765.1,3764.9,0.03332311]
[1717050532907,1.59358,3765.1,3764.8,2.8697]
[1717050533340,1.59358,3765.1,3764.9,0.03332311]
[1717050533928,3.0,3765.5,3765.0,2.3345]
[1717050534247,3.0,3765.7,3765.1,0.55]
[1717050536051,1.5934,3765.6,3765.1,0.55]
[1717050536950,4.0441,3765.6,3764.8,0.55]
[1717050537151,1.5935,3765.3,3764.8,0.55]
[1717050537623,1.5935,3765.3,3764.9,0.03331253]
[1717050538092,1.5935,3765.3,3764.8,0.55]
[1717050538560,1.5935,3765.3,3761.7,10.13351445]
[1717050538561,2.3809,3765.0,3764.9,0.03334074]
[1717050538783,4.3149,3765.0,3764.9,0.03334074]
[1717050538951,1.59382,3764.6,3763.3,2.4788]
[1717050539142,1.59382,3764.6,3763.4,0.407316]
[1717050539319,1.59382,3764.6,3763.4,0.4395496]
[1717050539518,1.59382,3764.6,3763.5,2.2778]
[1717050539720,4.59382,3764.6,3763.5,2.2778]
[1717050541565,1.5939,3764.4,3763.6,0.55]
[1717050541766,2.3359,3764.5,3762.3,0.2635304]
[1717050541767,1.59396,3764.2,3763.1,2.288]
[1717050542174,1.59396,3764.2,3763.2,0.0315658]
[1717050542475,1.59396,3764.2,3763.1,2.288]
[1717050542671,1.59396,3764.2,3763.3,0.0315658]
[1717050542831,1.59407,3764.0,3763.1,2.288]
[1717050543170,1.59407,3764.0,3763.4,0.0315658]
[1717050543375,1.59407,3764.0,3762.8,2.4763]
[1717050544972,1.59407,3764.0,3762.9,0.55]
[1717050545835,1.59416,3763.8,3762.9,0.55]
[1717050546031,4.59416,3763.8,3762.9,0.55]
[1717050548274,4.59416,3763.8,3763.0,0.30263]
[1717050548568,4.59416,3763.8,3763.1,0.55]
[1717050548938,4.59416,3763.8,3763.2,0.0315658]
[1717050549140,4.59416,3763.8,3763.1,0.55]
[1717050549340,4.29789222,3763.8,3762.9,0.55]
[1717050549542,4.29789222,3763.8,3762.4,2.4469]
[1717050549543,1.59435,3763.3,3762.4,2.4469]
[1717050550340,1.59435,3763.3,3762.0,2.3307]
[1717050550585,5.3866,3763.6,3762.5,0.0315658]
[1717050550586,1.59446,3763.1,3762.5,0.0315658]
[1717050550891,1.59465,3762.6,3761.5,3.9258]
[1717050551544,1.59474,3762.4,3761.5,2.3307]
[1717050551795,4.59474,3762.4,3761.1,2.4291]
[1717050552790,4.59474,3762.4,3761.1,3.72699222]
[1717050553131,4.59474,3762.4,3761.2,0.55]
[1717050553300,4.59474,3762.4,3761.3,0.42769922]
[1717050553459,4.59474,3762.4,3761.4,0.55]
[1717050553848,4.59474,3762.4,3761.4,0.58218946]
[1717050555245,4.59474,3762.4,3761.2,0.55]
[1717050555444,4.59474,3762.4,3760.9,0.55]
[1717050555682,1.59483,3762.2,3761.0,1.51242922]
[1717050555885,1.59483,3762.2,3761.1,0.55]
[1717050556260,1.59483,3762.2,3761.2,0.03218946]
[1717050556959,1.59483,3762.2,3761.1,0.55]
[1717050559090,1.59498,3761.8,3761.1,0.55]
[1717050559255,1.59498,3761.8,3760.3,1.59561]
[1717050559455,7.32297454,3761.7,3761.2,0.03218946]
[1717050559662,3.0,3761.6,3760.4,0.385771]
[1717050559873,7.32297454,3761.7,3761.3,0.03218946]
[1717050560075,3.0,3761.6,3760.5,1.59551]
[1717050560258,8.91795454,3761.8,3761.4,0.03218946]
[1717050560454,3.0,3761.7,3761.4,0.03218946]
[1717050560695,3.0,3761.7,3761.0,2.2585]
[1717050560696,1.59498,3761.8,3761.1,0.55]
[1717050561078,1.59498,3761.8,3761.5,0.03316929]
[1717050561408,3.0,3762.0,3761.2,0.03316929]
[1717050561612,3.0,3762.2,3761.3,0.44369393]
[1717050561775,7.32297454,3762.3,3761.4,1.84789222]
[1717050561961,7.32297454,3762.3,3761.6,2.4276]
[1717050562162,7.32297454,3762.3,3761.7,1.29789222]
[1717050562408,7.32297454,3762.3,3761.9,1.59491]
[1717050562687,7.32297454,3762.3,3761.8,0.92254922]
[1717050562688,7.32297454,3762.3,3762.1,1.59485]
[1717050563004,7.32297454,3762.3,3762.2,0.55]
[1717050563172,7.32297454,3763.0,3762.2,0.55]
[1717050563374,7.32297454,3763.0,3762.3,0.34427422]
[1717050563593,7.32297454,3763.0,3762.4,0.55]
[1717050565176,3.0,3762.9,3762.4,0.55]
[1717050567967,3.0,3762.9,3761.8,0.37254922]
[1717050568303,3.0,3762.9,3761.8,1.67044144]
[1717050568514,3.0,3762.9,3762.0,1.59488]
[1717050568819,3.0,3762.9,3762.0,2.89277222]
[1717050569166,3.0,3762.9,3762.1,0.58289073]
[1717050569765,7.32297454,3763.4,3762.3,2.4321]
[1717050570028,7.32297454,3763.4,3762.7,1.59459]
[1717050570172,1.59382,3764.6,3762.4,3.78189222]
[1717050570173,7.32297454,3764.0,3763.0,2.4321]
[1717050570374,7.32297454,3764.0,3763.1,1.84789222]
[1717050570887,7.32297454,3764.0,3763.2,0.03289073]
[1717050571086,7.32297454,3764.0,3763.2,1.33078295]
[1717050571320,7.32297454,3764.0,3763.3,0.55]
[1717050571543,7.32297454,3764.0,3763.3,0.36766086]
[1717050572226,7.32297454,3765.0,3763.8,1.59409]
[1717050572414,7.32297454,3765.0,3764.0,1.59404]
[1717050572608,7.32297454,3765.0,3764.0,2.89193222]
[1717050572807,1.59357,3765.2,3764.1,0.03231266]
[1717050573158,2.4715,3765.5,3764.1,1.33020488]
[1717050573439,0.24715,3765.4,3764.1,1.33020488]
[1717050573593,0.24715,3765.4,3764.2,0.55]
[1717050574222,0.24715,3765.4,3764.3,0.03231266]
[1717050575113,3.24715,3765.4,3764.3,0.03231266]
[1717050576245,1.59353,3765.3,3764.2,0.55]
[1717050576427,0.731218,3765.2,3764.1,0.55]
[1717050576590,0.731218,3765.2,3764.3,0.03231266]
[1717050576957,0.731218,3765.2,3764.1,0.55]
[1717050577241,0.731218,3765.2,3764.4,0.03231266]
[1717050577535,0.5571898,3765.1,3764.5,0.03231266]
[1717050577737,0.5571898,3765.1,3764.3,0.55]
[1717050577896,0.5571898,3765.1,3764.6,0.03231266]
[1717050578092,0.5571898,3765.1,3764.3,0.55]
[1717050578349,0.5571898,3765.1,3764.7,0.03231266]
[1717050578494,0.5571898,3765.1,3764.3,0.55]
[1717050578848,0.5571898,3765.1,3764.8,0.03231266]
[1717050579142,0.5571898,3765.1,3764.9,0.03231266]
[1717050579287,3.731218,3765.2,3764.3,0.55]
[1717050579495,3.0,3765.8,3765.0,0.03231266]
[1717050579789,3.0,3765.8,3764.4,3.62879222]
[1717050580028,3.0,3765.8,3765.1,0.03174546]
[1717050580234,3.0,3765.8,3764.5,0.55]
[1717050580549,3.0,3765.8,3764.5,1.84789222]
[1717050580715,0.686927,3765.7,3764.6,1.32963768]
[1717050580913,1.59327,3765.9,3764.8,1.5937]
[1717050581124,1.59327,3765.9,3764.9,1.84789222]
[1717050581533,1.59327,3765.9,3764.9,1.87963768]
[1717050582594,3.0,3766.0,3764.9,1.87963768]
[1717050582808,3.0,3766.0,3765.1,2.371]
[1717050583143,1.59298,3766.6,3765.4,1.59343]
[1717050583341,1.59298,3766.6,3765.5,1.29789222]
[1717050583503,1.59298,3766.6,3765.5,1.84789222]
[1717050583703,1.59298,3766.6,3765.5,0.58118549]
[1717050584045,8.05527199,3766.1,3765.5,0.58118549]
[1717050584609,7.32297454,3766.1,3765.5,0.58118549]
[1717050584999,7.32297454,3766.1,3765.5,0.03118549]
[1717050585402,7.32297454,3766.1,3765.2,0.55]
[1717050585749,7.32297454,3766.1,3765.6,0.03118549]
[1717050585918,8.91595454,3766.6,3765.2,0.55]
[1717050586255,3.0,3766.5,3765.5,1.59341]
[1717050586537,3.0,3766.5,3765.6,1.84789222]
[1717050588941,0.038872,3765.9,3765.7,0.03118549]
[1717050589240,0.038872,3765.9,3765.7,1.32907771]
[1717050589449,0.038872,3765.9,3765.8,0.55]
[1717050589616,0.038872,3765.9,3765.8,0.89724877]
[1717050589813,0.038872,3765.9,3765.8,4.48904099]
[1717050590040,0.038872,3765.9,3765.8,4.51975475]
[1717050591608,0.038872,3765.9,3765.8,3.22186253]
[1717050591949,0.038872,3765.9,3765.8,2.87461376]
[1717050593823,0.038872,3765.9,3765.8,0.03071376]
[1717050594149,0.038872,3765.9,3765.5,1.59341]
[1717050594348,0.038872,3765.9,3765.8,0.03044275]
[1717050594563,0.038872,3765.9,3765.5,1.59341]
[1717050594755,0.038872,3765.9,3765.8,0.03044275]
[1717050595051,0.038872,3765.9,3765.8,3.71969222]
[1717050595230,0.038872,3765.9,3765.8,4.80100244]
[1717050595557,0.038872,3765.9,3765.8,3.53355297]